bitfinex/quotes_SOLUSD_20220306
["timestamp","ask_amount","ask_price","bid_price","bid_amount"]
[1646595702074,51.07441723,85.907,85.85,17.4762]
[1646595702476,1.55891723,85.906,85.85,17.4762]
[1646595702676,4.075,85.905,85.85,17.4762]
[1646595702875,1.55891723,85.904,85.85,17.4762]
[1646595703476,1.55891723,85.903,85.85,17.4762]
[1646595703978,4.075,85.902,85.85,17.4762]
[1646595704176,17.4777,85.9,85.85,17.4762]
[1646595704378,17.4777,85.9,85.84,17.4782]
[1646595704777,17.4777,85.9,85.832,24.3608]
[1646595704981,1.55891723,85.896,85.832,24.3608]
[1646595705186,17.4797,85.89,85.832,24.3608]
[1646595705377,27.9598,85.895,85.832,24.3608]
[1646595705577,1.55891723,85.891,85.832,24.3608]
[1646595705779,4.075,85.89,85.84,17.4789]
[1646595706779,4.075,85.891,85.84,17.4789]
[1646595708181,4.075,85.891,85.81,16.74]
[1646595708182,17.4796,85.89,85.814,1.61469134]
[1646595708382,5.63391723,85.889,85.814,1.61469134]
[1646595708583,1.55891723,85.885,85.814,1.61469134]
[1646595708781,1.55891723,85.885,85.81,16.74]
[1646595708782,1.55891723,85.882,85.81,16.74]
[1646595708982,28.99251723,85.881,85.811,24.6602]
[1646595709181,19.04211723,85.88,85.811,24.6602]
[1646595709381,1.55891723,85.877,85.811,24.6602]
[1646595709583,1.55891723,85.868,85.811,24.6602]
[1646595709781,4.022,85.867,85.811,24.6602]
[1646595709982,23.3586,85.866,85.802,23.4273]
[1646595710184,3.916,85.865,85.802,23.4273]
[1646595710383,17.487,85.86,85.81,17.4851]
[1646595710982,17.487,85.86,85.802,23.4273]
[1646595711282,17.487,85.86,85.8,17.4868]
[1646595711483,17.4899,85.84,85.791,24.1688]
[1646595713182,3.866,85.839,85.791,24.1688]
[1646595714183,3.972,85.849,85.8,17.4873]
[1646595714385,4.078,85.854,85.8,17.4873]
[1646595714583,4.078,85.854,85.801,1.61469134]
[1646595716083,4.078,85.854,85.81,17.4824]
[1646595716283,4.078,85.854,85.801,1.61469134]
[1646595716484,4.022,85.853,85.791,24.1688]
[1646595716983,3.966,85.854,85.791,24.1688]
[1646595717282,3.966,85.854,85.8,17.487]
[1646595717283,17.4876,85.85,85.8,17.487]
[1646595717482,3.91,85.849,85.8,17.487]
[1646595717887,3.854,85.854,85.8,17.487]
[1646595718085,17.4879,85.85,85.791,24.1688]
[1646595718286,3.798,85.849,85.791,24.1688]
[1646595718487,24.9832,85.855,85.767,1.61469134]
[1646595718488,69.6,85.847,85.767,1.61469134]
[1646595718686,116.2,85.834,85.767,1.61469134]
[1646595718885,116.2,85.828,85.747,0.39811025]
[1646595719087,3.911,85.827,85.747,0.39811025]
[1646595719285,116.2,85.819,85.747,0.39811025]
[1646595719484,4.022,85.818,85.747,0.39811025]
[1646595720589,17.4972,85.81,85.747,0.39811025]
[1646595721084,17.4972,85.81,85.734,45.9115]
[1646595721289,24.6378,85.809,85.734,45.9115]
[1646595721485,24.6378,85.809,85.74,17.497]
[1646595722184,24.6378,85.809,85.741,54.63816013]
[1646595722387,24.6378,85.809,85.76,17.4906]
[1646595722584,23.2077,85.817,85.76,17.4906]
[1646595724185,23.2077,85.817,85.742,1.61469134]
[1646595724186,4.025,85.816,85.742,1.61469134]
[1646595724987,22.9492,85.815,85.742,1.61469134]
[1646595725185,4.022,85.814,85.742,1.61469134]
[1646595725688,22.9492,85.815,85.741,54.63816013]
[1646595725887,1.55891723,85.834,85.751,116.2]
[1646595726088,4.017,85.833,85.753,116.2]
[1646595726287,69.6,85.863,85.753,116.2]
[1646595726288,1.55891723,85.844,85.753,116.2]
[1646595726489,4.013,85.843,85.755,116.2]
[1646595726689,4.011,85.848,85.755,116.2]
[1646595726890,4.011,85.848,85.757,116.2]
[1646595727091,4.011,85.848,85.761,116.2]
[1646595727289,4.011,85.848,85.771,63.68315759]
[1646595727490,4.009,85.849,85.771,63.68315759]
[1646595727890,4.009,85.849,85.762,24.13089134]
[1646595727891,4.009,85.849,85.77,16.74]
[1646595728093,1.55891723,85.842,85.755,22.5162]
[1646595728295,72.21780534,85.848,85.753,1.61469134]
[1646595728296,69.6,85.824,85.753,1.61469134]
[1646595728492,4.005,85.823,85.735,1.61469134]
[1646595728691,46.9804,85.822,85.735,1.61469134]
[1646595728891,4.001,85.821,85.736,64.38283329]
[1646595730194,17.4948,85.82,85.76,17.4954]
[1646595730398,3.998,85.819,85.76,17.4954]
[1646595733196,4.019,85.821,85.76,17.4954]
[1646595733401,46.9804,85.822,85.76,17.4954]
[1646595733596,4.062,85.821,85.76,17.4954]
[1646595740933,4.062,85.821,85.77,17.4886]
[1646595741128,46.9804,85.822,85.77,17.4886]
[1646595741528,46.9504,85.822,85.77,17.4886]
[1646595744330,46.9504,85.822,85.746,1.61469134]
[1646595744530,1.55891723,85.818,85.746,1.61469134]
[1646595744732,1.55891723,85.815,85.746,1.61469134]
[1646595744933,1.55891723,85.808,85.71,16.74]
[1646595745131,1.55891723,85.805,85.71,16.74]
[1646595745331,71.15891723,85.801,85.71,16.74]
[1646595745532,17.5026,85.78,85.72,17.5022]
[1646595746633,116.2,85.789,85.72,17.5022]
[1646595747034,1.55891723,85.788,85.72,17.5022]
[1646595747233,1.55891723,85.787,85.72,17.5022]
[1646595747933,1.55891723,85.786,85.72,17.5022]
[1646595748133,17.502,85.78,85.72,17.5022]
[1646595748334,17.502,85.78,85.721,0.18848115]
[1646595749235,185.8,85.779,85.721,0.18848115]
[1646595749435,116.2,85.769,85.721,0.18848115]
[1646595749634,4.022,85.768,85.721,0.18848115]
[1646595749837,3.983,85.783,85.721,0.18848115]
[1646595750235,3.944,85.784,85.709,23.72098115]
[1646595750435,5.50291723,85.784,85.709,23.72098115]
[1646595751035,5.50291723,85.784,85.72,17.5033]
[1646595751237,3.944,85.784,85.72,17.5033]
[1646595751441,3.904,85.799,85.721,1.61469134]
[1646595751636,1.55891723,85.806,85.721,1.61469134]
[1646595751839,1.55891723,85.806,85.723,49.17461654]
[1646595752137,3.829,85.805,85.74,17.4933]
[1646595752339,3.986,85.806,85.74,17.4933]
[1646595752538,3.986,85.806,85.741,1.61469134]
[1646595752938,3.986,85.806,85.73,75.0508]
[1646595753337,3.986,85.806,85.73,99.28592422]
[1646595753537,3.986,85.806,85.75,17.4958]
[1646595754937,17.4979,85.8,85.75,17.4958]
[1646595755338,1.55891723,85.808,85.75,17.4958]
[1646595755539,4.059,85.807,85.75,17.4958]
[1646595757741,17.4998,85.79,85.723,24.5861]
[1646595758140,23.6598,85.79,85.723,24.5861]
[1646595758940,23.6598,85.79,85.73,17.5012]
[1646595759141,17.4998,85.79,85.73,17.5012]
[1646595759539,17.4998,85.79,85.723,24.5861]
[1646595759741,185.8,85.779,85.7,16.74]
[1646595760046,185.8,85.779,85.686,64.05732798]
[1646595760047,4.022,85.778,85.686,64.05732798]
[1646595760240,185.8,85.777,85.686,64.05732798]
[1646595760441,1.55891723,85.771,85.686,64.05732798]
[1646595760643,1.55891723,85.769,85.686,64.05732798]
[1646595760841,116.2,85.767,85.686,64.05732798]
[1646595761043,185.8,85.759,85.663,21.98179089]
[1646595761343,116.2,85.757,85.672,1.39811025]
[1646595761542,3.803,85.756,85.672,1.39811025]
[1646595761740,17.5086,85.75,85.672,1.39811025]
[1646595761945,17.5086,85.75,85.673,60.15661013]
[1646595762741,3.767,85.754,85.674,116.2]
[1646595762943,24.5284,85.755,85.674,116.2]
[1646595763142,24.5284,85.755,85.676,116.2]
[1646595763341,24.5284,85.755,85.675,21.98387089]
[1646595764548,24.5284,85.755,85.676,116.2]
[1646595765346,24.5284,85.755,85.675,21.98387089]
[1646595765547,17.5084,85.75,85.675,21.98387089]
[1646595765749,17.5084,85.75,85.673,60.15661013]
[1646595765948,24.5284,85.755,85.673,60.15661013]
[1646595766848,24.5284,85.755,85.674,116.2]
[1646595767051,24.5284,85.755,85.673,60.15661013]
[1646595767249,24.5284,85.755,85.68,17.508]
[1646595769557,17.5081,85.75,85.673,60.15661013]
[1646595769754,4.022,85.749,85.673,60.15661013]
[1646595769953,4.022,85.754,85.673,60.15661013]
[1646595770154,4.022,85.754,85.672,1.39811025]
[1646595770553,17.5101,85.74,85.672,1.39811025]
[1646595770757,116.2,85.738,85.672,1.39811025]
[1646595771352,4.022,85.737,85.672,1.39811025]
[1646595771554,4.022,85.738,85.672,1.39811025]
[1646595774355,120.222,85.738,85.672,1.39811025]
[1646595774555,17.5122,85.73,85.672,1.39811025]
[1646595774956,24.6115,85.739,85.672,1.39811025]
[1646595775355,116.2,85.738,85.672,1.39811025]
[1646595776056,24.6115,85.739,85.672,1.39811025]
[1646595776460,94.2115,85.739,85.672,1.39811025]
[1646595776857,4.022,85.738,85.672,1.39811025]
[1646595777261,69.6,85.737,85.672,1.025e-05]
[1646595777463,0.97,85.704,85.589,4.74034897]
[1646595777661,69.6,85.687,85.573,3.16023265]
[1646595777861,16.74,85.69,85.526,17.8579]
[1646595777862,0.62612644,85.632,85.555,3.16023265]
[1646595778060,0.62612644,85.633,85.537,3.16023265]
[1646595778261,0.62612644,85.633,85.538,63.35747254]
[1646595778466,116.82612644,85.633,85.538,63.35747254]
[1646595778661,116.2,85.629,85.538,61.53747254]
[1646595778863,0.62612644,85.628,85.529,7.0]
[1646595779062,116.82612644,85.619,85.529,7.0]
[1646595779273,0.62612644,85.606,85.518,3.16023265]
[1646595779464,17.5424,85.6,85.518,2.16023265]
[1646595779664,185.8,85.589,85.487,4.74034897]
[1646595779866,185.8,85.587,85.487,4.74034897]
[1646595780064,69.6,85.579,85.468,0.25]
[1646595780264,4.041,85.586,85.415,7.90058162]
[1646595780265,5.73208753,85.567,85.415,0.00058162]
[1646595780468,2.61501671,85.397,85.303,164.43176493]
[1646595780666,16.74,85.39,85.303,164.43176493]
[1646595780864,115.7,85.389,85.32,2.072371]
[1646595781067,115.7,85.389,85.303,163.93413593]
[1646595781068,4.29728499,85.369,85.303,163.93413593]
[1646595781369,22.43626448,85.285,85.175,5.60841304]
[1646595781567,1.55891723,85.249,85.175,17.6328]
[1646595781765,4.85144405,85.285,85.176,85.0]
[1646595781968,16.74,85.32,85.18,3.74]
[1646595782165,16.74,85.34,85.192,5.24526781]
[1646595782367,209.24,85.38,85.192,4.68727434]
[1646595782368,214.56570594,85.38,85.192,4.68727434]
[1646595782573,121.38262047,85.368,85.192,4.19048338]
[1646595782768,121.38262047,85.368,85.191,52.14237819]
[1646595782769,0.62612644,85.349,85.191,52.14237819]
[1646595782970,0.62612644,85.309,85.176,1.29]
[1646595783167,89.7935985,85.367,85.176,1.29]
[1646595783168,120.5732506,85.299,85.176,1.29]
[1646595783368,0.62612644,85.288,85.176,1.29]
[1646595783572,122.76,85.299,85.176,1.29]
[1646595783573,0.62612644,85.279,85.176,1.29]
[1646595783768,6.56,85.299,85.177,5.866]
[1646595783970,6.56,85.299,85.178,52.81191332]
[1646595784171,2.53633977,85.299,85.182,5.77379823]
[1646595784472,16.74,85.36,85.19,208.24]
[1646595784669,4.22240495,85.349,85.191,51.88190358]
[1646595784876,5.863,85.348,85.191,51.88190358]
[1646595785871,5.863,85.348,85.211,56.85583146]
[1646595786072,5.863,85.348,85.212,5.863]
[1646595786272,16.74,85.35,85.212,5.863]
[1646595786571,5.863,85.368,85.213,4.71945041]
[1646595786776,5.862,85.369,85.221,69.6]
[1646595786976,23.8971,85.43,85.29,17.5732]
[1646595786977,5.862,85.407,85.29,17.5732]
[1646595787171,40.6371,85.43,85.28,58.5774]
[1646595787172,5.857,85.429,85.3,16.74]
[1646595787375,5.857,85.429,85.292,62.24156397]
[1646595787376,5.857,85.429,85.31,16.74]
[1646595787571,5.857,85.429,85.32,16.74]
[1646595787787,5.857,85.429,85.321,5.856]
[1646595787985,5.93155956,85.428,85.32,16.74]
[1646595788385,10.77301007,85.429,85.32,16.74]
[1646595788885,5.857,85.429,85.321,0.07193048]
[1646595789089,23.8971,85.43,85.322,5.856]
[1646595789288,116.2,85.428,85.321,1.29]
[1646595789589,5.18536578,85.418,85.321,1.29]
[1646595789788,5.18536578,85.418,85.182,140.0261]
[1646595789789,22.45782572,85.315,85.27,16.74]
[1646595789996,22.45782572,85.315,85.271,5.862]
[1646595790389,22.45782572,85.315,85.249,0.07193048]
[1646595790390,0.00782572,85.315,85.28,14.09]
[1646595790589,0.00782572,85.315,85.29,14.09]
[1646595790789,0.00782572,85.315,85.291,5.861]
[1646595791392,0.00782572,85.315,85.292,0.07193048]
[1646595791593,0.00782572,85.315,85.293,5.861]
[1646595791991,0.00782572,85.315,85.294,0.07193048]
[1646595792191,0.00782572,85.315,85.296,57.86222925]
[1646595792494,0.00782572,85.315,85.3,14.09]
[1646595792690,0.00782572,85.315,85.301,5.861]
[1646595792892,121.80171977,85.498,85.304,0.18237525]
[1646595793091,5.60171977,85.498,85.331,58.65642222]
[1646595793391,14.09,85.5,85.34,14.09]
[1646595793591,11.41843058,85.499,85.341,5.853]
[1646595793893,116.2,85.498,85.341,5.853]
[1646595794093,116.2,85.496,85.341,5.853]
[1646595794291,116.2,85.494,85.342,2.83613526]
[1646595794492,122.08311903,85.479,85.344,49.58800327]
[1646595794690,120.40041139,85.469,85.344,49.58800327]
[1646595794891,0.97,85.504,85.345,5.854]
[1646595794892,120.22774598,85.459,85.345,5.854]
[1646595795097,5.854,85.458,85.345,5.854]
[1646595795692,5.854,85.458,85.341,5.854]
[1646595796092,116.2,85.457,85.341,5.854]
[1646595796296,116.2,85.455,85.34,14.09]
[1646595796494,116.2,85.453,85.341,54.81268982]
[1646595796694,122.055,85.452,85.341,54.81268982]
[1646595796895,116.2,85.449,85.34,14.09]
[1646595797095,116.2,85.447,85.333,0.07193048]
[1646595797295,116.2,85.445,85.333,0.07193048]
[1646595797601,5.855,85.446,85.333,0.07193048]
[1646595797796,116.2,85.446,85.335,60.27709897]
[1646595797995,5.855,85.447,85.335,60.27709897]
[1646595798202,5.855,85.447,85.336,5.855]
[1646595798802,5.855,85.447,85.34,14.09]
[1646595799001,5.855,85.458,85.341,5.855]
[1646595799499,116.2,85.457,85.341,5.855]
[1646595799699,116.2,85.455,85.341,5.855]
[1646595799900,116.2,85.453,85.336,5.854]
[1646595800105,116.2,85.449,85.336,5.854]
[1646595800300,116.2,85.447,85.335,60.27709897]
[1646595800501,116.2,85.441,85.335,60.27709897]
[1646595800701,116.2,85.439,85.335,60.27709897]
[1646595800899,116.2,85.437,85.335,60.27709897]
[1646595801105,116.2,85.437,85.336,5.855]
[1646595801499,116.2,85.437,85.35,14.09]
[1646595801700,5.855,85.457,85.351,5.855]
[1646595801902,5.854,85.479,85.352,45.53014685]
[1646595802100,5.853,85.498,85.353,5.853]
[1646595802500,72.20717899,85.497,85.352,45.53014685]
[1646595802706,75.453,85.496,85.353,5.853]
[1646595802902,0.22096642,85.494,85.352,45.53014685]
[1646595803104,4.42754979,85.488,85.352,45.53014685]
[1646595803304,0.2342361,85.485,85.352,45.53014685]
[1646595803605,0.29301986,85.482,85.352,45.53014685]
[1646595803905,5.853,85.481,85.353,5.853]
[1646595804105,11.74630533,85.511,85.353,5.853]
[1646595804306,14.09,85.51,85.353,5.853]
[1646595804608,5.852,85.509,85.36,17.5667]
[1646595804806,116.2,85.508,85.37,14.09]
[1646595805004,116.2,85.506,85.371,52.7620938]
[1646595805206,116.2,85.504,85.371,52.7620938]
[1646595805405,2.60717899,85.522,85.371,52.7620938]
[1646595805406,4.18831051,85.501,85.371,52.7620938]
[1646595805604,116.2,85.499,85.371,52.7620938]
[1646595806206,4.02454493,85.521,85.38,17.5618]
[1646595806430,116.2,85.519,85.39,14.09]
[1646595806610,116.2,85.517,85.391,63.94047537]
[1646595807110,116.2,85.515,85.392,5.851]
[1646595807307,116.2,85.513,85.4,17.5599]
[1646595807511,116.2,85.511,85.401,5.849]
[1646595807711,116.2,85.509,85.401,5.849]
[1646595807909,5.851,85.508,85.401,5.849]
[1646595808510,5.851,85.527,85.401,5.849]
[1646595808910,10.46441265,85.528,85.401,5.849]
[1646595809314,116.2,85.527,85.401,5.849]
[1646595809514,116.2,85.525,85.41,14.09]
[1646595809711,5.849,85.524,85.411,58.9832326]
[1646595810111,5.849,85.527,85.411,58.9832326]
[1646595810513,7.66598587,85.525,85.411,58.9832326]
[1646595810818,5.849,85.524,85.411,58.9832326]
[1646595811012,5.849,85.524,85.43,17.5547]
[1646595811214,7.66598587,85.525,85.431,46.05695779]
[1646595811613,5.849,85.524,85.431,46.05695779]
[1646595811814,116.2,85.527,85.431,46.05695779]
[1646595812013,4.56581999,85.526,85.431,46.05695779]
[1646595812217,0.13659529,85.523,85.431,46.05695779]
[1646595812417,0.13752171,85.52,85.431,46.05695779]
[1646595812618,5.849,85.522,85.431,46.05695779]
[1646595812821,5.849,85.549,85.431,46.05695779]
[1646595813023,5.849,85.554,85.431,46.05695779]
[1646595813615,116.2,85.528,85.431,46.05695779]
[1646595813817,116.2,85.528,85.44,17.5516]
[1646595814017,116.2,85.526,85.44,30.6416]
[1646595814218,75.24490805,85.525,85.44,14.09]
[1646595814418,69.6,85.517,85.42,14.09]
[1646595814618,0.62612644,85.511,85.41,14.09]
[1646595814818,0.62612644,85.508,85.41,14.09]
[1646595815017,0.62612644,85.505,85.41,14.09]
[1646595815219,0.62612644,85.502,85.41,14.09]
[1646595815422,116.2,85.5,85.41,14.09]
[1646595815617,116.2,85.498,85.41,14.09]
[1646595815817,116.2,85.496,85.41,14.09]
[1646595816019,69.6,85.491,85.289,57.67]
[1646595816218,185.8,85.482,85.344,116.2]
[1646595816417,185.8,85.482,85.341,116.2]
[1646595816418,0.62612644,85.481,85.341,116.2]
[1646595816617,0.62612644,85.481,85.35,14.09]
[1646595816821,69.6,85.472,85.35,14.09]
[1646595817018,185.8,85.468,85.351,61.32440973]
[1646595817217,0.62612644,85.465,85.351,61.32440973]
[1646595817420,0.62612644,85.462,85.351,61.32440973]
[1646595817618,0.62612644,85.458,85.351,61.32440973]
[1646595817818,0.62612644,85.455,85.351,61.32440973]
[1646595818020,0.62612644,85.452,85.351,61.32440973]
[1646595818220,0.62612644,85.449,85.351,61.32440973]
[1646595818420,116.2,85.447,85.351,61.32440973]
[1646595818619,6.48012644,85.446,85.36,17.5699]
[1646595818820,5.854,85.471,85.36,17.5699]
[1646595819019,5.854,85.471,85.36,31.6599]
[1646595819723,0.62612644,85.469,85.36,31.6599]
[1646595819920,0.62612644,85.466,85.36,31.6599]
[1646595820120,4.67533725,85.463,85.36,31.6599]
[1646595820320,116.2,85.461,85.36,31.6599]
[1646595820528,21.78255938,85.469,85.361,116.2]
[1646595820723,116.2,85.468,85.39,17.5613]
[1646595820923,21.78255938,85.469,85.391,45.89561287]
[1646595821123,7.66598587,85.482,85.391,45.89561287]
[1646595821522,7.66598587,85.482,85.391,23.4821634]
[1646595821725,5.852,85.495,85.391,23.4821634]
[1646595821927,5.851,85.506,85.41,17.5611]
[1646595822124,11.65163856,85.53,85.42,14.09]
[1646595822328,5.80263856,85.53,85.42,14.09]
[1646595822525,5.849,85.527,85.42,14.09]
[1646595822731,116.2,85.507,85.42,14.09]
[1646595823029,5.41562362,85.5,85.42,14.09]
[1646595823626,116.2,85.498,85.42,14.09]
[1646595823827,0.22719164,85.491,85.4,14.09]
[1646595824028,0.27411869,85.488,85.36,14.09]
[1646595824226,4.85453748,85.485,85.36,14.09]
[1646595824425,69.6,85.472,85.36,14.09]
[1646595824626,116.2,85.467,85.36,14.09]
[1646595824826,0.31783439,85.46,85.361,58.29783014]
[1646595825125,69.91783439,85.457,85.36,14.09]
[1646595825329,116.51783439,85.448,85.306,73.30226791]
[1646595825531,190.11317394,85.442,85.306,73.30226791]
[1646595825728,0.31783439,85.441,85.33,14.09]
[1646595825930,0.31783439,85.441,85.34,14.09]
[1646595826128,116.2,85.442,85.353,64.10395189]
[1646595826526,116.2,85.447,85.353,64.10395189]
[1646595827129,116.2,85.441,85.353,64.10395189]
[1646595827429,116.2,85.439,85.33,72.6666]
[1646595827732,5.57328829,85.436,85.33,72.6666]
[1646595827928,116.2,85.435,85.33,72.6666]
[1646595828133,5.58734435,85.434,85.33,72.6666]
[1646595828331,5.76142268,85.434,85.33,72.6666]
[1646595828530,5.58734435,85.434,85.353,47.8326553]
[1646595828946,121.78734435,85.434,85.353,47.8326553]
[1646595829346,116.2,85.434,85.353,47.8326553]
[1646595829545,5.855,85.433,85.353,47.8326553]
[1646595829946,377.18162981,85.459,85.353,47.8326553]
[1646595830751,116.2,85.458,85.353,47.8326553]
[1646595830947,0.24735322,85.455,85.36,17.5731]
[1646595831150,116.2,85.453,85.36,17.5731]
[1646595831352,69.89984006,85.448,85.36,17.5731]
[1646595831551,116.2,85.431,85.33,14.09]
[1646595831752,116.2,85.427,85.33,14.09]
[1646595831953,0.39621057,85.424,85.34,17.5776]
[1646595832152,116.2,85.422,85.348,48.89995305]
[1646595832356,116.2,85.42,85.348,48.89995305]
[1646595832556,5.32611148,85.419,85.348,48.89995305]
[1646595832753,116.2,85.42,85.34,17.5776]
[1646595832953,116.2,85.42,85.33,14.09]
[1646595833257,116.2,85.436,85.35,17.576]
[1646595833456,116.2,85.434,85.35,17.576]
[1646595833660,116.2,85.432,85.35,17.576]
[1646595833855,116.2,85.43,85.353,49.97637193]
[1646595834056,116.2,85.428,85.35,17.576]
[1646595834957,116.2,85.427,85.36,17.5739]
[1646595835157,116.2,85.427,85.361,64.28894668]
[1646595835556,116.2,85.452,85.361,64.28894668]
[1646595835761,116.2,85.45,85.361,64.28894668]
[1646595835957,116.2,85.448,85.361,64.28894668]
[1646595837056,116.2,85.452,85.361,64.28894668]
[1646595837257,116.2,85.45,85.37,17.5722]
[1646595837461,116.2,85.45,85.34,14.09]
[1646595837660,0.20863258,85.447,85.33,58.5879]
[1646595837859,0.21583675,85.443,85.33,72.6779]
[1646595838060,0.23311846,85.44,85.33,14.09]
[1646595838361,0.23311846,85.44,85.353,50.66605921]
[1646595838558,116.2,85.441,85.353,50.66605921]
[1646595838958,116.2,85.439,85.353,50.66605921]
[1646595839159,116.2,85.437,85.36,17.5745]
[1646595839458,116.2,85.435,85.36,17.5745]
[1646595839658,116.2,85.433,85.36,17.5745]
[1646595840658,116.2,85.447,85.36,17.5745]
[1646595840863,116.2,85.445,85.36,17.5745]
[1646595841060,116.2,85.443,85.36,17.5745]
[1646595841364,121.63468595,85.439,85.36,17.5745]
[1646595841562,116.2,85.437,85.36,17.5745]
[1646595841761,116.2,85.435,85.36,17.5745]
[1646595842761,116.2,85.437,85.36,17.5745]
[1646595842961,69.6,85.434,85.354,5.854]
[1646595843162,0.17191072,85.428,85.33,5.855]
[1646595843370,0.24469735,85.425,85.321,5.856]
[1646595843562,0.24469735,85.425,85.25,176.15]
[1646595843563,0.25525624,85.422,85.3,14.09]
[1646595843761,0.25941569,85.417,85.301,5.857]
[1646595843961,185.8,85.415,85.302,52.59460748]
[1646595844161,0.25941569,85.414,85.303,5.857]
[1646595844362,0.25941569,85.411,85.303,5.857]
[1646595844560,0.28365502,85.402,85.303,5.857]
[1646595844761,0.28365502,85.4,85.303,5.857]
[1646595844963,0.28365502,85.398,85.31,17.5846]
[1646595845260,116.2,85.399,85.31,17.5846]
[1646595845764,116.2,85.397,85.31,17.5846]
[1646595845967,116.2,85.395,85.31,17.5846]
[1646595846965,116.2,85.394,85.31,17.5846]
[1646595847966,116.2,85.398,85.31,17.5846]
[1646595848266,116.2,85.396,85.31,17.5846]
[1646595848468,116.2,85.394,85.31,17.5846]
[1646595849066,116.2,85.394,85.31,31.6746]
[1646595849266,116.2,85.394,85.33,17.5767]
[1646595849467,116.2,85.403,85.253,17.6079]
[1646595849668,4.37799692,85.402,85.242,48.33246749]
[1646595849867,4.37799692,85.402,85.28,14.09]
[1646595850171,69.6,85.393,85.28,14.09]
[1646595850368,5.55729797,85.381,85.3,17.5879]
[1646595850568,116.2,85.379,85.296,47.78823511]
[1646595850768,5.859,85.378,85.296,47.78823511]
[1646595850975,116.2,85.387,85.3,14.09]
[1646595851370,116.2,85.387,85.301,5.857]
[1646595851769,116.2,85.386,85.301,5.857]
[1646595852370,69.6,85.374,85.217,57.67]
[1646595852571,69.6,85.352,85.21,72.5446]
[1646595852770,69.6,85.33,85.21,24.4032]
[1646595852970,116.2,85.321,85.21,24.4032]
[1646595853170,0.54887377,85.318,85.21,24.4032]
[1646595853369,5.07070152,85.316,85.211,60.57644846]
[1646595853572,116.2,85.289,85.212,5.864]
[1646595853973,116.2,85.289,85.211,60.57644846]
[1646595854170,171.61216937,85.289,85.211,60.57644846]
[1646595854370,171.61216937,85.289,85.21,24.4032]
[1646595854672,0.14776683,85.288,85.21,42.011]
[1646595855192,116.35463101,85.285,85.21,17.6078]
[1646595855372,116.2,85.285,85.211,46.46510476]
[1646595856074,4.29271784,85.301,85.211,46.46510476]
[1646595856272,116.2,85.311,85.211,46.46510476]
[1646595856471,116.2,85.309,85.22,17.6056]
[1646595857070,116.2,85.309,85.22,16.6056]
[1646595857271,34.69605911,85.308,85.22,16.6056]
[1646595857471,116.2,85.307,85.22,16.6056]
[1646595857871,116.2,85.307,85.24,17.5981]
[1646595858071,116.2,85.307,85.241,56.21548834]
[1646595858273,5.863,85.332,85.241,56.21548834]
[1646595858476,5.862,85.333,85.241,56.21548834]
[1646595858675,23.8152,85.344,85.243,116.2]
[1646595858881,23.8152,85.344,85.26,17.5974]
[1646595859073,23.8152,85.344,85.261,47.27644453]
[1646595859672,23.8152,85.344,85.262,5.861]
[1646595859972,23.68624474,85.344,85.262,5.861]
[1646595860173,23.68624474,85.344,85.28,17.5918]
[1646595860372,5.861,85.362,85.281,48.46498958]
[1646595860574,116.2,85.361,85.281,48.46498958]
[1646595860772,116.2,85.359,85.281,48.46498958]